[Event "*** Titled Tuesday Blitz"]
[Site "Chess.com"]
[Date "2019.08.06"]
[Round "7"]
[White "NMZanette"]
[Black "ChessyInstinct"]
[Result "1-0"]
[WhiteElo "2326"]
[BlackElo "2363"]
[TimeControl "180+2"]
[EndTime "14:37:47 PDT"]
[Termination "NMZanette won by checkmate"]

1. e4 {[%clk 0:03:01.9]} 1... d5 {[%clk 0:03:00]} 2. exd5 {[%clk 0:03:02.9]}
2... Qxd5 {[%clk 0:03:01.9]} 3. Nc3 {[%clk 0:03:03.3]} 3... Qd6 {[%clk
0:03:03.2]} 4. d4 {[%clk 0:03:04.1]} 4... c6 {[%clk 0:03:04.7]} 5. h3 {[%clk
0:03:04.7]} 5... Nf6 {[%clk 0:03:05.7]} 6. Nf3 {[%clk 0:03:05.3]} 6... Bf5
{[%clk 0:03:07.1]} 7. Bc4 {[%clk 0:03:01.2]} 7... e6 {[%clk 0:03:08.3]} 8. Bb3
{[%clk 0:02:59.6]} 8... Nbd7 {[%clk 0:03:09.5]} 9. g4 {[%clk 0:02:46.2]} 9...
Bg6 {[%clk 0:03:09.5]} 10. Nh4 {[%clk 0:02:47.3]} 10... Qc7 {[%clk 0:03:08]} 11.
Nxg6 {[%clk 0:02:46.5]} 11... hxg6 {[%clk 0:03:09.9]} 12. Qf3 {[%clk 0:02:45.8]}
12... Bd6 {[%clk 0:03:00.6]} 13. Be3 {[%clk 0:02:37.3]} 13... Nd5 {[%clk
0:02:52.4]} 14. Nxd5 {[%clk 0:02:36]} 14... cxd5 {[%clk 0:02:53.4]} 15. O-O-O
{[%clk 0:02:28.4]} 15... a5 {[%clk 0:02:53.9]} 16. Ba4 {[%clk 0:02:21.2]} 16...
Rc8 {[%clk 0:02:50.7]} 17. c3 {[%clk 0:02:13.9]} 17... Rf8 {[%clk 0:02:45.8]}
18. Kb1 {[%clk 0:02:08.6]} 18... b5 {[%clk 0:02:45.2]} 19. Bxb5 {[%clk
0:02:08.4]} 19... Rb8 {[%clk 0:02:44.2]} 20. Bxd7+ {[%clk 0:02:09.6]} 20... Kxd7
{[%clk 0:02:38.4]} 21. Bc1 {[%clk 0:02:07.3]} 21... a4 {[%clk 0:02:39.2]} 22.
Ka1 {[%clk 0:01:56.8]} 22... f6 {[%clk 0:02:22.7]} 23. Qd3 {[%clk 0:01:46.8]}
23... f5 {[%clk 0:02:14]} 24. Rhe1 {[%clk 0:01:42.1]} 24... a3 {[%clk
0:02:00.5]} 25. b3 {[%clk 0:01:37.5]} 25... fxg4 {[%clk 0:02:00.5]} 26. Bd2
{[%clk 0:01:22.4]} 26... Rxf2 {[%clk 0:01:51]} 27. hxg4 {[%clk 0:01:05]} 27...
Rbf8 {[%clk 0:01:36.2]} 28. Qe3 {[%clk 0:00:59]} 28... Qc6 {[%clk 0:01:05.4]}
29. Qxe6+ {[%clk 0:00:52.3]} 29... Kc7 {[%clk 0:01:06.2]} 30. Re2 {[%clk
0:00:38.2]} 30... R2f6 {[%clk 0:00:33.4]} 31. Qe3 {[%clk 0:00:35.2]} 31... Rf3
{[%clk 0:00:34]} 32. Qg5 {[%clk 0:00:30.6]} 32... Qb5 {[%clk 0:00:27]} 33. Rde1
{[%clk 0:00:24.7]} 33... Rf1 {[%clk 0:00:22.5]} 34. Qe3 {[%clk 0:00:17.8]} 34...
R8f3 {[%clk 0:00:07]} 35. Qe6 {[%clk 0:00:14.7]} 35... Rxe1+ {[%clk 0:00:04.9]}
36. Rxe1 {[%clk 0:00:15.8]} 36... Qd3 {[%clk 0:00:05.2]} 37. Qxd5 {[%clk
0:00:07.6]} 37... Qxd2 {[%clk 0:00:04.6]} 38. Qa5+ {[%clk 0:00:08.1]} 38... Kd7
{[%clk 0:00:05]} 39. Qa7+ {[%clk 0:00:06.1]} 39... Bc7 {[%clk 0:00:03.5]} 40.
Qa4+ {[%clk 0:00:07.2]} 40... Kd8 {[%clk 0:00:03.3]} 41. Qa8+ {[%clk 0:00:07.9]}
41... Kd7 {[%clk 0:00:03.7]} 42. Qe8+ {[%clk 0:00:08.5]} 42... Kd6 {[%clk
0:00:04.7]} 43. Qe6# {[%clk 0:00:07.8]} 1-0

[Event "*** Titled Tuesday Blitz"]
[Site "Chess.com"]
[Date "2019.08.06"]
[Round "7"]
[White "Lion_DL"]
[Black "Spring199"]
[Result "0-1"]
[WhiteElo "2335"]
[BlackElo "2229"]
[TimeControl "180+2"]
[EndTime "14:37:52 PDT"]
[Termination "Spring199 won by checkmate"]

1. e4 {[%clk 0:03:01.9]} 1... e5 {[%clk 0:03:00.6]} 2. f4 {[%clk 0:03:02.4]}
2... d5 {[%clk 0:03:01]} 3. exd5 {[%clk 0:03:02.8]} 3... exf4 {[%clk 0:03:01.6]}
4. Nf3 {[%clk 0:03:03.1]} 4... Nf6 {[%clk 0:03:02.2]} 5. Bc4 {[%clk 0:03:03.7]}
5... Nxd5 {[%clk 0:02:56.3]} 6. O-O {[%clk 0:02:42.7]} 6... Be7 {[%clk
0:02:53.2]} 7. Bxd5 {[%clk 0:02:33.2]} 7... Qxd5 {[%clk 0:02:53.5]} 8. Nc3
{[%clk 0:02:33.9]} 8... Qd8 {[%clk 0:02:42.8]} 9. d4 {[%clk 0:02:35.1]} 9... O-O
{[%clk 0:02:41.5]} 10. Bxf4 {[%clk 0:02:35.2]} 10... Bg4 {[%clk 0:02:42]} 11.
Qd3 {[%clk 0:02:30.4]} 11... Nc6 {[%clk 0:02:37.4]} 12. Ne2 {[%clk 0:02:12.1]}
12... Qd5 {[%clk 0:02:31.2]} 13. c4 {[%clk 0:02:10.4]} 13... Qa5 {[%clk
0:01:47.8]} 14. d5 {[%clk 0:01:49.3]} 14... Rad8 {[%clk 0:01:42.6]} 15. Ng5
{[%clk 0:01:40.1]} 15... Bxg5 {[%clk 0:01:27.3]} 16. Bxg5 {[%clk 0:01:40.7]}
16... Ne5 {[%clk 0:01:27.7]} 17. Qe4 {[%clk 0:01:25.9]} 17... Rde8 {[%clk
0:01:26.3]} 18. Kh1 {[%clk 0:01:03.5]} 18... f5 {[%clk 0:00:59.5]} 19. Qc2
{[%clk 0:00:50.7]} 19... Nf7 {[%clk 0:00:59.9]} 20. Ng3 {[%clk 0:00:35.1]} 20...
Nxg5 {[%clk 0:00:59.3]} 21. h3 {[%clk 0:00:36]} 21... f4 {[%clk 0:00:42.3]} 22.
Ne4 {[%clk 0:00:16.5]} 22... Bf5 {[%clk 0:00:40]} 23. Qc3 {[%clk 0:00:15.4]}
23... Qxc3 {[%clk 0:00:38]} 24. Nxc3 {[%clk 0:00:17.3]} 24... Bd3 {[%clk
0:00:38.8]} 25. Rfd1 {[%clk 0:00:14.5]} 25... Bxc4 {[%clk 0:00:39.5]} 26. Rd4
{[%clk 0:00:14.9]} 26... Bb5 {[%clk 0:00:40]} 27. Nxb5 {[%clk 0:00:15.4]} 27...
Rf7 {[%clk 0:00:37.8]} 28. Rc1 {[%clk 0:00:14.8]} 28... f3 {[%clk 0:00:30.8]}
29. Nxc7 {[%clk 0:00:09.3]} 29... Re2 {[%clk 0:00:23.4]} 30. g3 {[%clk
0:00:06.3]} 30... f2 {[%clk 0:00:22.7]} 31. Rf1 {[%clk 0:00:05]} 31... Ne4
{[%clk 0:00:16.3]} 32. Kg2 {[%clk 0:00:05.3]} 32... Nd2 {[%clk 0:00:15.3]} 33.
d6 {[%clk 0:00:02]} 33... Nxf1 {[%clk 0:00:11.6]} 34. d7 {[%clk 0:00:03]} 34...
Ne3+ {[%clk 0:00:12.8]} 35. Kh2 {[%clk 0:00:03.2]} 35... f1=Q# {[%clk
0:00:14.4]} 0-1

[Event "*** Titled Tuesday Blitz"]
[Site "Chess.com"]
[Date "2019.08.06"]
[Round "7"]
[White "SaraciNderim"]
[Black "sergiochess83"]
[Result "1/2-1/2"]
[WhiteElo "2835"]
[BlackElo "2909"]
[TimeControl "180+2"]
[EndTime "14:38:08 PDT"]
[Termination "Game drawn by repetition"]

1. Nf3 {[%clk 0:03:01.9]} 1... d5 {[%clk 0:02:56.1]} 2. c4 {[%clk 0:03:02.7]}
2... d4 {[%clk 0:02:56.4]} 3. d3 {[%clk 0:03:03.3]} 3... Nc6 {[%clk 0:02:50.6]}
4. g3 {[%clk 0:03:04.4]} 4... e5 {[%clk 0:02:51]} 5. Bg2 {[%clk 0:03:05.5]} 5...
Bb4+ {[%clk 0:02:51.6]} 6. Nbd2 {[%clk 0:03:05.4]} 6... a5 {[%clk 0:02:52.4]} 7.
O-O {[%clk 0:03:05.5]} 7... Nf6 {[%clk 0:02:53]} 8. Rb1 {[%clk 0:03:06.3]} 8...
O-O {[%clk 0:02:51.7]} 9. a3 {[%clk 0:03:07.6]} 9... Bd6 {[%clk 0:02:51.6]} 10.
b4 {[%clk 0:03:07.3]} 10... axb4 {[%clk 0:02:51.5]} 11. axb4 {[%clk 0:03:09.2]}
11... Nxb4 {[%clk 0:02:51.3]} 12. Nb3 {[%clk 0:02:08.4]} 12... c5 {[%clk
0:02:36.6]} 13. Bd2 {[%clk 0:02:00.2]} 13... Nc6 {[%clk 0:02:26.5]} 14. Ng5
{[%clk 0:02:01.1]} 14... Bf5 {[%clk 0:02:18.1]} 15. e4 {[%clk 0:01:36.4]} 15...
dxe3 {[%clk 0:02:10.2]} 16. Bxe3 {[%clk 0:01:35.9]} 16... Qe7 {[%clk 0:02:03.5]}
17. Qe2 {[%clk 0:01:02.4]} 17... h6 {[%clk 0:01:53.2]} 18. Ne4 {[%clk
0:00:50.8]} 18... Nxe4 {[%clk 0:01:51.5]} 19. Bxe4 {[%clk 0:00:48.5]} 19... Bxe4
{[%clk 0:01:49.8]} 20. dxe4 {[%clk 0:00:50.4]} 20... Nd4 {[%clk 0:01:51.1]} 21.
Qb2 {[%clk 0:00:42.4]} 21... Qe6 {[%clk 0:01:43.9]} 22. Nd2 {[%clk 0:00:41]}
22... Rfb8 {[%clk 0:01:27.3]} 23. Ra1 {[%clk 0:00:41.8]} 23... Rxa1 {[%clk
0:01:18]} 24. Rxa1 {[%clk 0:00:43.7]} 24... Be7 {[%clk 0:01:15.8]} 25. Ra7
{[%clk 0:00:38.6]} 25... Qc6 {[%clk 0:01:11.1]} 26. Qa2 {[%clk 0:00:34.2]} 26...
Bg5 {[%clk 0:01:08.6]} 27. Ra8 {[%clk 0:00:24.3]} 27... Qc8 {[%clk 0:00:59.4]}
28. Rxb8 {[%clk 0:00:19]} 28... Qxb8 {[%clk 0:01:01.3]} 29. Qa5 {[%clk
0:00:18.7]} 29... Bxe3 {[%clk 0:00:55.3]} 30. fxe3 {[%clk 0:00:19.6]} 30... b6
{[%clk 0:00:54.4]} 31. Qa4 {[%clk 0:00:20.6]} 31... Ne6 {[%clk 0:00:50.5]} 32.
Nf3 {[%clk 0:00:21.4]} 32... Qb7 {[%clk 0:00:23.1]} 33. Qe8+ {[%clk 0:00:19.4]}
33... Kh7 {[%clk 0:00:24.2]} 34. Nxe5 {[%clk 0:00:12.9]} 34... Qxe4 {[%clk
0:00:25.2]} 35. Nxf7 {[%clk 0:00:09.5]} 35... Qxe3+ {[%clk 0:00:26.4]} 36. Kf1
{[%clk 0:00:10.9]} 36... Qf3+ {[%clk 0:00:22.7]} 37. Kg1 {[%clk 0:00:11.7]}
37... Qd1+ {[%clk 0:00:20.5]} 38. Kf2 {[%clk 0:00:11.6]} 38... Qd4+ {[%clk
0:00:19.5]} 39. Kg2 {[%clk 0:00:10]} 39... Qe4+ {[%clk 0:00:18.4]} 40. Kf2
{[%clk 0:00:10.5]} 40... Qc2+ {[%clk 0:00:14.6]} 41. Ke1 {[%clk 0:00:09.8]}
41... Qc3+ {[%clk 0:00:13.5]} 42. Kf2 {[%clk 0:00:10.9]} 42... Qd2+ {[%clk
0:00:13.8]} 43. Kf1 {[%clk 0:00:10.9]} 43... Qd1+ {[%clk 0:00:09.6]} 44. Kf2
{[%clk 0:00:12]} 44... Qd4+ {[%clk 0:00:08]} 45. Kg2 {[%clk 0:00:08.7]} 45...
Qe4+ {[%clk 0:00:06.6]} 46. Kf2 {[%clk 0:00:09.7]} 46... Qd4+ {[%clk 0:00:05.3]}
1/2-1/2

[Event "*** Titled Tuesday Blitz"]
[Site "Chess.com"]
[Date "2019.08.06"]
[Round "7"]
[White "Parhamov"]
[Black "GMHess"]
[Result "1-0"]
[WhiteElo "2962"]
[BlackElo "2795"]
[TimeControl "180+2"]
[EndTime "14:38:12 PDT"]
[Termination "Parhamov won by resignation"]

1. Nf3 {[%clk 0:03:01.9]} 1... g6 {[%clk 0:02:55.4]} 2. c4 {[%clk 0:03:03]} 2...
Bg7 {[%clk 0:02:57.3]} 3. Nc3 {[%clk 0:03:04.2]} 3... c5 {[%clk 0:02:58.2]} 4.
g3 {[%clk 0:03:03.1]} 4... Nc6 {[%clk 0:02:59.1]} 5. Bg2 {[%clk 0:03:04.6]} 5...
Nh6 {[%clk 0:03:00.1]} 6. h4 {[%clk 0:03:04.7]} 6... d6 {[%clk 0:02:59.3]} 7. h5
{[%clk 0:03:05.9]} 7... Bg4 {[%clk 0:02:51.2]} 8. d4 {[%clk 0:03:03]} 8... gxh5
{[%clk 0:01:52.8]} 9. d5 {[%clk 0:02:55]} 9... Na5 {[%clk 0:01:41.3]} 10. Qd3
{[%clk 0:02:35.6]} 10... Bf5 {[%clk 0:01:36.5]} 11. e4 {[%clk 0:02:35.4]} 11...
Bg6 {[%clk 0:01:37.7]} 12. Nh4 {[%clk 0:02:30.2]} 12... Ng4 {[%clk 0:01:31]} 13.
f4 {[%clk 0:02:04.3]} 13... Bd4 {[%clk 0:01:26.5]} 14. Nd1 {[%clk 0:02:04.7]}
14... Qb6 {[%clk 0:01:22]} 15. Bd2 {[%clk 0:01:45.4]} 15... O-O-O {[%clk
0:00:26]} 16. Rb1 {[%clk 0:01:42.4]} 16... Qa6 {[%clk 0:00:24.3]} 17. b3 {[%clk
0:01:35.3]} 17... f6 {[%clk 0:00:25.2]} 18. Nf5 {[%clk 0:01:29.9]} 18... Bxf5
{[%clk 0:00:20.6]} 19. exf5 {[%clk 0:01:31]} 19... Rhg8 {[%clk 0:00:15.2]} 20.
Rxh5 {[%clk 0:01:31.6]} 20... Rg7 {[%clk 0:00:16.5]} 21. Bf3 {[%clk 0:01:20.5]}
21... Rdg8 {[%clk 0:00:15.9]} 22. Rh3 {[%clk 0:01:20.2]} 22... b6 {[%clk
0:00:12.9]} 23. Rc1 {[%clk 0:01:08.3]} 23... Nb7 {[%clk 0:00:11.7]} 24. a4
{[%clk 0:01:09.1]} 24... Nd8 {[%clk 0:00:11.5]} 25. Ke2 {[%clk 0:01:00.5]} 25...
Qb7 {[%clk 0:00:07.3]} 26. b4 {[%clk 0:00:58]} 26... Qd7 {[%clk 0:00:07.2]} 27.
a5 {[%clk 0:00:57.1]} 27... Nf7 {[%clk 0:00:06.1]} 28. axb6 {[%clk 0:00:54]}
28... axb6 {[%clk 0:00:08]} 29. bxc5 {[%clk 0:00:55.5]} 29... dxc5 {[%clk
0:00:08.1]} 30. Rb1 {[%clk 0:00:52.8]} 30... Kc7 {[%clk 0:00:08.9]} 31. Bc3
{[%clk 0:00:51.3]} 31... Bxc3 {[%clk 0:00:08]} 32. Nxc3 {[%clk 0:00:50.5]} 32...
Nd6 {[%clk 0:00:09.5]} 33. Nb5+ {[%clk 0:00:49.1]} 33... Nxb5 {[%clk 0:00:10.6]}
34. cxb5 {[%clk 0:00:50.1]} 34... Ra8 {[%clk 0:00:11.8]} 35. d6+ {[%clk
0:00:50.7]} 35... exd6 {[%clk 0:00:12.6]} 36. Bxa8 {[%clk 0:00:51.8]} 36... Re7+
{[%clk 0:00:13.3]} 37. Kd2 {[%clk 0:00:50.3]} 37... Nf2 {[%clk 0:00:14.5]} 38.
Qf3 {[%clk 0:00:36.1]} 38... Nxh3 {[%clk 0:00:14.4]} 39. Qb7+ {[%clk 0:00:31.8]}
39... Kd8 {[%clk 0:00:15.9]} 40. Qb8+ {[%clk 0:00:33]} 40... Qc8 {[%clk
0:00:15.3]} 41. Qxb6+ {[%clk 0:00:33.8]} 41... Qc7 {[%clk 0:00:15.9]} 42. Qxc7+
{[%clk 0:00:31.9]} 42... Kxc7 {[%clk 0:00:17.8]} 43. b6+ {[%clk 0:00:31.3]}
43... Kb8 {[%clk 0:00:17.9]} 44. Bd5 {[%clk 0:00:31.9]} 44... Nf2 {[%clk
0:00:13.3]} 45. Ra1 {[%clk 0:00:32.9]} 45... Ne4+ {[%clk 0:00:14.8]} 46. Kc2
{[%clk 0:00:33.7]} 46... Rb7 {[%clk 0:00:12.4]} 47. Re1 {[%clk 0:00:28.2]} 47...
Rxb6 {[%clk 0:00:06.4]} 48. Rxe4 {[%clk 0:00:26.6]} 48... Ra6 {[%clk 0:00:07.7]}
49. Re8+ {[%clk 0:00:26.6]} 49... Kc7 {[%clk 0:00:09.1]} 50. Re7+ {[%clk
0:00:27.8]} 50... Kd8 {[%clk 0:00:10.7]} 51. Rxh7 {[%clk 0:00:28.7]} 51... Ra3
{[%clk 0:00:12.4]} 52. g4 {[%clk 0:00:29.5]} 52... Ra4 {[%clk 0:00:13.8]} 53. g5
{[%clk 0:00:30.3]} 53... Rxf4 {[%clk 0:00:14.1]} 54. g6 {[%clk 0:00:31]} 1-0

[Event "*** Titled Tuesday Blitz"]
[Site "Chess.com"]
[Date "2019.08.06"]
[Round "7"]
[White "slowdgehammer"]
[Black "daro94"]
[Result "1/2-1/2"]
[WhiteElo "2453"]
[BlackElo "2679"]
[TimeControl "180+2"]
[EndTime "14:38:19 PDT"]
[Termination "Game drawn by repetition"]

1. Nf3 {[%clk 0:03:01.5]} 1... g6 {[%clk 0:03:01]} 2. c4 {[%clk 0:03:00.2]} 2...
Bg7 {[%clk 0:03:02.4]} 3. Nc3 {[%clk 0:02:52.6]} 3... d6 {[%clk 0:03:03.2]} 4.
g3 {[%clk 0:02:53.6]} 4... Nf6 {[%clk 0:02:59.7]} 5. Bg2 {[%clk 0:02:51.9]} 5...
O-O {[%clk 0:03:01.6]} 6. d4 {[%clk 0:02:49.5]} 6... c6 {[%clk 0:02:56.7]} 7.
O-O {[%clk 0:02:47.8]} 7... Bf5 {[%clk 0:02:58]} 8. Nh4 {[%clk 0:02:44.8]} 8...
Be6 {[%clk 0:02:47.6]} 9. f4 {[%clk 0:02:32.7]} 9... Bxc4 {[%clk 0:02:38.3]} 10.
Re1 {[%clk 0:02:23.1]} 10... d5 {[%clk 0:02:38.1]} 11. b3 {[%clk 0:02:18.6]}
11... Ba6 {[%clk 0:02:38.9]} 12. e3 {[%clk 0:02:16.7]} 12... e6 {[%clk
0:02:39.9]} 13. Nf3 {[%clk 0:02:13]} 13... Nbd7 {[%clk 0:02:40.7]} 14. Ne5
{[%clk 0:02:10.3]} 14... Rc8 {[%clk 0:02:39.2]} 15. b4 {[%clk 0:01:59.6]} 15...
Nxe5 {[%clk 0:02:36.1]} 16. fxe5 {[%clk 0:01:57.6]} 16... Nd7 {[%clk 0:02:37.1]}
17. e4 {[%clk 0:01:44.3]} 17... Qb6 {[%clk 0:02:30.5]} 18. Be3 {[%clk
0:00:57.5]} 18... Qxb4 {[%clk 0:02:29.9]} 19. Qd2 {[%clk 0:00:40.1]} 19... Rfd8
{[%clk 0:02:11.6]} 20. Rab1 {[%clk 0:00:36.6]} 20... Qa3 {[%clk 0:02:08.4]} 21.
Bg5 {[%clk 0:00:31.7]} 21... Re8 {[%clk 0:02:07.7]} 22. Re3 {[%clk 0:00:24.4]}
22... Qf8 {[%clk 0:02:02.9]} 23. Rf3 {[%clk 0:00:25.1]} 23... Nb6 {[%clk
0:02:01.7]} 24. Qf4 {[%clk 0:00:20.4]} 24... Bc4 {[%clk 0:01:31.2]} 25. h4
{[%clk 0:00:21]} 25... c5 {[%clk 0:01:31.2]} 26. exd5 {[%clk 0:00:17]} 26...
Nxd5 {[%clk 0:01:32]} 27. Nxd5 {[%clk 0:00:17.6]} 27... Bxd5 {[%clk 0:01:33.9]}
28. Rf2 {[%clk 0:00:19]} 28... Bxg2 {[%clk 0:01:32.5]} 29. Kxg2 {[%clk
0:00:20.1]} 29... cxd4 {[%clk 0:01:30.4]} 30. Rxb7 {[%clk 0:00:20.7]} 30... h6
{[%clk 0:00:29.6]} 31. Bf6 {[%clk 0:00:21.9]} 31... Qc5 {[%clk 0:00:11.3]} 32.
Bxg7 {[%clk 0:00:19.9]} 32... Qd5+ {[%clk 0:00:11.9]} 33. Qf3 {[%clk 0:00:20.1]}
33... Qxf3+ {[%clk 0:00:06]} 34. Rxf3 {[%clk 0:00:21]} 34... Rc2+ {[%clk
0:00:06.6]} 35. Kh3 {[%clk 0:00:21.7]} 35... Kxg7 {[%clk 0:00:05.6]} 36. Rfxf7+
{[%clk 0:00:22.7]} 36... Kg8 {[%clk 0:00:06.7]} 37. Rh7 {[%clk 0:00:23.7]} 37...
d3 {[%clk 0:00:06.3]} 38. Rhg7+ {[%clk 0:00:23.8]} 38... Kh8 {[%clk 0:00:07.4]}
39. Rxg6 {[%clk 0:00:22.7]} 39... d2 {[%clk 0:00:07.6]} 40. Rxh6+ {[%clk
0:00:24]} 40... Kg8 {[%clk 0:00:09.1]} 41. Rg6+ {[%clk 0:00:25.2]} 41... Kh8
{[%clk 0:00:10.5]} 42. Rd7 {[%clk 0:00:26.3]} 42... Rxa2 {[%clk 0:00:07.6]} 43.
Rh6+ {[%clk 0:00:26]} 43... Kg8 {[%clk 0:00:08.6]} 44. Rg6+ {[%clk 0:00:27.4]}
44... Kh8 {[%clk 0:00:10]} 45. h5 {[%clk 0:00:28.7]} 45... Rf8 {[%clk
0:00:06.6]} 46. h6 {[%clk 0:00:28.8]} 46... Rf1 {[%clk 0:00:05.1]} 47. Rgg7
{[%clk 0:00:24.4]} 47... Rh1+ {[%clk 0:00:05.5]} 48. Kg4 {[%clk 0:00:22.2]}
48... d1=Q+ {[%clk 0:00:07.4]} 49. Rxd1 {[%clk 0:00:22.7]} 49... Rxd1 {[%clk
0:00:09.3]} 50. Kg5 {[%clk 0:00:22.8]} 50... Rf1 {[%clk 0:00:06.5]} 51. g4
{[%clk 0:00:23.3]} 51... Rf8 {[%clk 0:00:06.9]} 52. Kg6 {[%clk 0:00:23.8]} 52...
Re2 {[%clk 0:00:07.5]} 53. Rh7+ {[%clk 0:00:22.8]} 53... Kg8 {[%clk 0:00:07.8]}
54. Rg7+ {[%clk 0:00:24.4]} 54... Kh8 {[%clk 0:00:09.3]} 55. Rh7+ {[%clk
0:00:25.4]} 55... Kg8 {[%clk 0:00:10.8]} 56. Rg7+ {[%clk 0:00:26.7]} 56... Kh8
{[%clk 0:00:12.3]} 1/2-1/2

[Event "*** Titled Tuesday Blitz"]
[Site "Chess.com"]
[Date "2019.08.06"]
[Round "7"]
[White "Nancy11111"]
[Black "leclash"]
[Result "0-1"]
[WhiteElo "2309"]
[BlackElo "2214"]
[TimeControl "180+2"]
[EndTime "14:38:25 PDT"]
[Termination "leclash won by checkmate"]

1. d4 {[%clk 0:03:01.9]} 1... d5 {[%clk 0:02:59.4]} 2. Nf3 {[%clk 0:03:01.5]}
2... Nf6 {[%clk 0:03:00.3]} 3. c4 {[%clk 0:03:00.7]} 3... c6 {[%clk 0:03:00.7]}
4. g3 {[%clk 0:03:00.1]} 4... e6 {[%clk 0:03:01.7]} 5. Bg2 {[%clk 0:03:00.9]}
5... dxc4 {[%clk 0:03:02.8]} 6. O-O {[%clk 0:03:01.7]} 6... b5 {[%clk
0:03:03.2]} 7. Ne5 {[%clk 0:03:02.1]} 7... Nd5 {[%clk 0:03:03]} 8. a4 {[%clk
0:03:02.9]} 8... Bb7 {[%clk 0:02:49.3]} 9. e4 {[%clk 0:02:53.5]} 9... Ne7 {[%clk
0:02:37]} 10. b3 {[%clk 0:02:46.1]} 10... cxb3 {[%clk 0:02:14]} 11. Bb2 {[%clk
0:02:39.9]} 11... Nd7 {[%clk 0:01:57.7]} 12. Nd3 {[%clk 0:02:29.4]} 12... a6
{[%clk 0:01:48.3]} 13. Qxb3 {[%clk 0:02:29.3]} 13... Rc8 {[%clk 0:01:32.1]} 14.
Nc5 {[%clk 0:02:28.1]} 14... Nxc5 {[%clk 0:01:30.2]} 15. dxc5 {[%clk 0:02:28.8]}
15... Ng6 {[%clk 0:01:30]} 16. Na3 {[%clk 0:02:26.2]} 16... e5 {[%clk
0:01:14.4]} 17. Rac1 {[%clk 0:02:25.3]} 17... Qa5 {[%clk 0:01:07.6]} 18. Nc4
{[%clk 0:02:22.5]} 18... Qxa4 {[%clk 0:00:56.8]} 19. Qxa4 {[%clk 0:02:22.9]}
19... bxa4 {[%clk 0:00:58.7]} 20. Nb6 {[%clk 0:02:23.8]} 20... Rd8 {[%clk
0:00:54.1]} 21. Ba3 {[%clk 0:02:23.5]} 21... Be7 {[%clk 0:00:53.1]} 22. Nxa4
{[%clk 0:02:23.2]} 22... O-O {[%clk 0:00:49]} 23. Rb1 {[%clk 0:02:23.9]} 23...
Bc8 {[%clk 0:00:49.1]} 24. Rb6 {[%clk 0:02:21.6]} 24... Be6 {[%clk 0:00:43.1]}
25. Rxc6 {[%clk 0:02:20.8]} 25... Bc4 {[%clk 0:00:43.9]} 26. Rc1 {[%clk
0:02:15.9]} 26... Bb5 {[%clk 0:00:44.8]} 27. Rc7 {[%clk 0:02:11.5]} 27... Bxa4
{[%clk 0:00:44.5]} 28. Ra7 {[%clk 0:01:57]} 28... Rd1+ {[%clk 0:00:44.9]} 29.
Rxd1 {[%clk 0:01:57]} 29... Bxd1 {[%clk 0:00:46.8]} 30. Rxa6 {[%clk 0:01:58]}
30... Be2 {[%clk 0:00:45.1]} 31. Ra7 {[%clk 0:01:56.5]} 31... Rc8 {[%clk
0:00:39]} 32. Ra5 {[%clk 0:01:52.5]} 32... Nf8 {[%clk 0:00:36.1]} 33. f3 {[%clk
0:01:52.1]} 33... Ne6 {[%clk 0:00:35.9]} 34. Kf2 {[%clk 0:01:53]} 34... Bc4
{[%clk 0:00:33.7]} 35. Ra4 {[%clk 0:01:51.9]} 35... Bb3 {[%clk 0:00:34.3]} 36.
Ra7 {[%clk 0:01:44.7]} 36... Bxc5+ {[%clk 0:00:30.4]} 37. Bxc5 {[%clk
0:01:44.9]} 37... Nxc5 {[%clk 0:00:32.3]} 38. g4 {[%clk 0:01:41.2]} 38... Ne6
{[%clk 0:00:30.7]} 39. h4 {[%clk 0:01:41.3]} 39... h6 {[%clk 0:00:28]} 40. Bh3
{[%clk 0:01:41]} 40... Nf4 {[%clk 0:00:28.7]} 41. Bf1 {[%clk 0:01:40.9]} 41...
Rc2+ {[%clk 0:00:27.6]} 42. Kg3 {[%clk 0:01:41.6]} 42... Bc4 {[%clk 0:00:25.3]}
43. Rc7 {[%clk 0:01:39]} 43... Bd3 {[%clk 0:00:21.3]} 44. Rxc2 {[%clk
0:01:36.1]} 44... Bxc2 {[%clk 0:00:23.2]} 45. g5 {[%clk 0:01:37.2]} 45... h5
{[%clk 0:00:24]} 46. Bc4 {[%clk 0:01:35.6]} 46... Kf8 {[%clk 0:00:24.4]} 47. Bb5
{[%clk 0:01:28.3]} 47... Ke7 {[%clk 0:00:25.5]} 48. Bc4 {[%clk 0:01:27.1]} 48...
Bd3 {[%clk 0:00:25.7]} 49. Bb3 {[%clk 0:01:26.9]} 49... f6 {[%clk 0:00:26.4]}
50. gxf6+ {[%clk 0:01:27.2]} 50... gxf6 {[%clk 0:00:28.3]} 51. Ba2 {[%clk
0:01:26.7]} 51... Kd6 {[%clk 0:00:30.2]} 52. Bb3 {[%clk 0:01:26.2]} 52... Kc5
{[%clk 0:00:32.1]} 53. Bf7 {[%clk 0:01:27.1]} 53... Kd4 {[%clk 0:00:32.9]} 54.
Bxh5 {[%clk 0:01:21.3]} 54... Nxh5+ {[%clk 0:00:32.3]} 55. Kg4 {[%clk
0:01:22.6]} 55... Nf4 {[%clk 0:00:33.1]} 56. Kf5 {[%clk 0:01:22]} 56... Be2
{[%clk 0:00:30.2]} 57. Kxf6 {[%clk 0:01:20.2]} 57... Bxf3 {[%clk 0:00:31.3]} 58.
Kf5 {[%clk 0:01:21.4]} 58... Bxe4+ {[%clk 0:00:32.3]} 59. Kg5 {[%clk 0:01:22.9]}
59... Bg6 {[%clk 0:00:32.8]} 60. Kg4 {[%clk 0:01:20.5]} 60... Bh5+ {[%clk
0:00:33]} 61. Kg5 {[%clk 0:01:21.5]} 61... Bf3 {[%clk 0:00:33.8]} 62. Kf5 {[%clk
0:01:21.7]} 62... Nh5 {[%clk 0:00:33.4]} 63. Kg5 {[%clk 0:01:19.5]} 63... e4
{[%clk 0:00:35.3]} 64. Kg6 {[%clk 0:01:20.2]} 64... e3 {[%clk 0:00:36.6]} 65.
Kh6 {[%clk 0:01:20.6]} 65... e2 {[%clk 0:00:37.6]} 66. Kg5 {[%clk 0:01:22.1]}
66... e1=Q {[%clk 0:00:38.2]} 67. Kh6 {[%clk 0:01:23.4]} 67... Qe3+ {[%clk
0:00:38.9]} 68. Kg6 {[%clk 0:01:22.9]} 68... Qe6+ {[%clk 0:00:36.2]} 69. Kg5
{[%clk 0:01:23.4]} 69... Qf6# {[%clk 0:00:36.9]} 0-1